fUSD/lending_fUSD_20250905
["ID","MTS","AMOUNT","RATE_DAILY","PERIOD"]
[383690658,1757089843295,-168.12828028,0.000305,5]
[383690663,1757089843419,-1011.64798684,0.000305,5]
[383690664,1757089845820,-4292.28805,0.000305,5]
[383690665,1757089846084,-40.93568288,0.000305,5]
[383690666,1757089846095,-500.0,0.00030509,7]
[383690667,1757089846104,-738.16119811,0.00030532,7]
[383690670,1757089937543,154.86,0.00030137,120]
[383690679,1757090259925,156.12,0.000281,120]
[383690680,1757090394036,157.57,0.00013699,2]
[383690686,1757090577685,5308.32,0.0002704,120]
[383690709,1757090792576,183.53,0.00013479,2]
[383690710,1757090845860,764.48,0.00026994,120]
[383690719,1757091031998,-151.0,0.0002418,2]
[383690720,1757091032007,-570.6976,0.00024292,2]
[383690721,1757091032020,-203.687005,0.00024353,2]
[383690722,1757091032030,-300.0,0.00024353,2]
[383690723,1757091032039,-182.94117967,0.00024392,2]
[383690724,1757091032049,-183.6723,0.000248,2]
[383690725,1757091032058,-151.0,0.000248,2]
[383690726,1757091032067,-1014.93050713,0.000249,2]
[383690727,1757091032078,-333.61392198,0.000249,2]
[383690728,1757091032088,-551.40607592,0.00024998,2]
[383690729,1757091032098,-300.0,0.00024999,2]
[383690730,1757091032108,-156.587,0.00025348,2]
[383690731,1757091032117,-164.5,0.000256,2]
[383690732,1757091032128,-1348.54442893,0.00025929,4]
[383690733,1757091032137,-157.57,0.00026027,2]
[383690734,1757091032147,-1200.0,0.00026744,2]
[383690735,1757091032158,-300.0,0.00026745,2]
[383690736,1757091032167,-1700.0,0.00026745,2]
[383690737,1757091032177,-200.0,0.00026921,2]
[383690738,1757091032187,-183.53,0.00026957,2]
[383690739,1757091032196,-1348.54442893,0.00026959,6]
[383690740,1757091032205,-150.0,0.0002698,2]
[383690741,1757091032215,-250.0,0.00027029,2]
[383690742,1757091032224,-375.47,0.00027126,2]
[383690743,1757091032234,-516.0,0.00027137,2]
[383690744,1757091032246,-918.03664993,0.00027307,2]
[383690745,1757091032272,-670.45874351,0.00027307,2]
[383690747,1757091032321,-9427.07460656,0.00027307,2]
[383690749,1757091032332,-500.0,0.000274,5]
[383690751,1757091032342,-160.0,0.00027414,7]
[383690753,1757091032351,-15.08779004,0.00027496,2]
[383690755,1757091032364,-165.33220996,0.00027496,2]
[383690757,1757091032373,-165.88,0.00027843,2]
[383690759,1757091032383,-501.33999993,0.00027948,5]
[383690761,1757091032393,-1348.54442893,0.00027988,8]
[383690763,1757091032403,-1000.0,0.00028,3]
[383690765,1757091032412,-200.0,0.00028214,2]
[383690768,1757091032421,-1782.64,0.00028382,7]
[383690770,1757091032431,-1656.68,0.00028411,2]
[383690772,1757091032441,-500.0,0.00028673,5]
[383690774,1757091032450,-500.0,0.00028673,5]
[383690776,1757091032460,-200.0,0.00028683,2]
[383690778,1757091032469,-500.0,0.00028683,2]
[383690780,1757091032477,-500.0,0.00028683,2]
[383690782,1757091032486,-500.0,0.00028683,2]
[383690784,1757091032498,-500.0,0.00028683,2]
[383690786,1757091032507,-500.0,0.00028683,2]
[383690788,1757091032519,-151.0,0.00028683,2]
[383690790,1757091032528,-500.0,0.00028683,2]
[383690792,1757091032538,-151.0,0.00028683,2]
[383690794,1757091032547,-500.0,0.00028683,2]
[383690796,1757091032556,-151.0,0.00028683,2]
[383690821,1757091032770,-500.0,0.00028683,2]
[383690823,1757091032787,-151.0,0.00028683,2]
[383690825,1757091032796,-500.0,0.00028683,2]
[383690827,1757091032806,-151.0,0.00028683,2]
[383690828,1757091032815,-467.51415721,0.00028683,2]
[383690829,1757091032825,-151.0,0.00028683,2]
[383690830,1757091032834,-151.0,0.00028683,2]
[383690831,1757091032844,-151.0,0.00028683,2]
[383690832,1757091032853,-151.0,0.00028683,2]
[383690833,1757091032863,-151.0,0.00028683,2]
[383690834,1757091032873,-151.0,0.00028683,2]
[383690835,1757091032882,-151.0,0.00028683,2]
[383690836,1757091032891,-151.0,0.00028683,2]
[383690837,1757091032901,-1000.0,0.000287,2]
[383690838,1757091032911,-34668.1073,0.000287,2]
[383690839,1757091032920,-4022.9913,0.000287,2]
[383690840,1757091032930,-2500.0,0.000287,2]
[383690841,1757091032939,-5303.4101,0.000287,2]
[383690842,1757091032948,-231.6946,0.000287,2]
[383690843,1757091032958,-3090.77488851,0.00028733,2]
[383690844,1757091032967,-500.0,0.00028773,5]
[383690845,1757091032977,-508.50381697,0.00028773,3]
[383690846,1757091032986,-504.75368228,0.00028773,5]
[383690847,1757091032996,-500.0,0.00028773,5]
[383690848,1757091033006,-27366.1979699,0.0002879,3]
[383690849,1757091033016,-616.31,0.0002879,2]
[383690850,1757091033025,-616.31,0.0002879,2]
[383690851,1757091033035,-616.31,0.0002879,2]
[383690852,1757091033045,-17160.70253822,0.000288,2]
[383690853,1757091033059,-144837.91922642,0.000288,2]
[383690854,1757091033071,-5725.58302855,0.000288,2]
[383690855,1757091033082,-1206.25572442,0.000288,2]
[383690856,1757091033114,-16569.06144332,0.000288,2]
[383690857,1757091033127,-302.12823907,0.000288,2]
[383690858,1757091033137,-423.94,0.00028833,30]
[383690859,1757091033147,-179.38755899,0.00029,3]
[383690900,1757091040046,-336.03266768,0.0002841,2]
[383690901,1757091040056,-820.61244101,0.00029,3]
[383690902,1757091040066,-1348.54442893,0.00029017,11]
[383690903,1757091040075,-3316.40429036,0.00029022,2]
[383690904,1757091040088,-305.10447365,0.00029022,2]
[383690905,1757091040155,-553.07826,0.00029022,2]
[383690906,1757091040166,-3395.97470981,0.00029022,2]
[383690907,1757091040178,-500.0,0.00029022,2]
[383690908,1757091040217,-2020.84826618,0.00029022,2]
[383690909,1757091040227,-1000.0,0.00029221,5]
[383690910,1757091040237,-500.0,0.0002926,2]
[383690911,1757091040250,-1000.0,0.00029321,5]
[383690912,1757091040259,-150.0,0.00029614,7]
[383690913,1757091040268,-150.0,0.00029614,7]
[383690914,1757091040277,-150.0,0.00029614,7]
[383690915,1757091040288,-150.0,0.00029614,7]
[383690916,1757091040299,-150.0,0.00029614,7]
[383690917,1757091040308,-150.0,0.00029614,7]
[383690918,1757091040319,-150.0,0.00029614,7]
[383690919,1757091040328,-150.0,0.00029614,7]
[383690920,1757091040337,-150.0,0.00029614,7]
[383690921,1757091040346,-150.0,0.00029614,7]
[383690922,1757091040354,-150.0,0.00029614,7]
[383690923,1757091040363,-150.0,0.00029614,7]
[383690924,1757091040371,-150.0,0.00029614,7]
[383690925,1757091040380,-13683.098985,0.00029641,3]
[383690926,1757091040389,-616.31,0.00029641,2]
[383690927,1757091040397,-5364.512274,0.00029651,2]
[383690928,1757091040406,-25309.1499522,0.00029651,2]
[383690929,1757091040415,-1296.359398,0.00029651,2]
[383690930,1757091040425,-3090.77488851,0.00029714,2]
[383690931,1757091040433,-199.49284104,0.00029868,5]
[383690932,1757091040442,-173.38827481,0.00029946,15]
[383690933,1757091040450,-165.25,0.00029979,2]
[383690934,1757091040459,-4806.61999804,0.0002999,3]
[383690947,1757091040676,-700.0,0.0002999,3]
[383690948,1757091040687,-666.86251688,0.0002999,3]
[383691008,1757091043827,-1002.31745,0.00026,2]
[383691009,1757091043838,-149.15971864,0.0002999,3]
[383691010,1757091043882,-1063.98581669,0.0002999,3]
[383691011,1757091043994,-6296.47093475,0.0002999,3]
[383691012,1757091044004,-616.31,0.0002999,2]
[383691013,1757091044013,-6697.91045066,0.0003,2]
[383691014,1757091044024,-80996.29239053,0.0003,5]
[383691015,1757091044034,-1000.0,0.0003,7]
[383691017,1757091044043,-1000.0,0.0003,7]
[383691018,1757091044053,-1000.0,0.0003,7]
[383691020,1757091044063,-1370.0,0.0003,7]
[383691021,1757091044072,-429.84050257,0.0003002,2]
[383691022,1757091044082,-1348.54442893,0.00030046,13]
[383691023,1757091044091,-159.59,0.00030137,30]
[383691024,1757091044101,-1300.0,0.00030146,7]
[383691025,1757091044111,-1300.0,0.00030187,7]
[383691026,1757091044121,-1200.0,0.00030191,7]
[383691027,1757091044131,-500.0,0.00030202,7]
[383691028,1757091044140,-1300.0,0.00030226,7]
[383691029,1757091044150,-500.0,0.00030251,7]
[383691030,1757091044160,-500.0,0.00030272,7]
[383691031,1757091044170,-1700.0,0.00030288,7]
[383691033,1757091044179,-1200.0,0.00030307,7]
[383691034,1757091044189,-1300.0,0.00030311,7]
[383691037,1757091044199,-500.0,0.00030377,7]
[383691039,1757091044208,-500.0,0.00030377,7]
[383691040,1757091044219,-500.0,0.00030378,7]
[383691042,1757091044230,-1200.0,0.00030386,7]
[383691044,1757091044242,-500.0,0.00030388,7]
[383691046,1757091044253,-1200.0,0.00030416,7]
[383691048,1757091044262,-168.18112244,0.00030418,7]
[383691050,1757091044273,-4984.95649711,0.00030426,2]
[383691052,1757091044282,-13683.098985,0.00030458,3]
[383691054,1757091044293,-1300.0,0.00030459,7]
[383691078,1757091044515,-1300.0,0.00030468,7]
[383691080,1757091044528,-600.0,0.00030474,7]
[383691082,1757091044538,-211.53155,0.00030532,2]
[383691084,1757091044547,-427.85149818,0.00030568,7]
[383691086,1757091044556,-211.53156,0.0003058,2]
[383691088,1757091044565,-1200.0,0.0003059,7]
[383691090,1757091044574,-1200.0,0.00030591,7]
[383691092,1757091044593,-1700.0,0.00030592,7]
[383691094,1757091044603,-1300.0,0.00030596,7]
[383691096,1757091044614,-983.87461363,0.00030602,7]
[383691098,1757091044624,-600.0,0.00030625,7]
[383691100,1757091044634,-1200.0,0.00030635,7]
[383691102,1757091044643,-1700.0,0.00030662,7]
[383691104,1757091044652,-150.0,0.00030684,120]
[383691106,1757091044662,-3090.77488851,0.00030695,2]
[383691108,1757091044672,-500.0,0.00030715,7]
[383691110,1757091044682,-600.0,0.00030732,7]
[383691112,1757091044691,-1100.0,0.00030741,7]
[383691114,1757091044701,-1700.0,0.0003075,7]
[383691116,1757091044711,-500.0,0.00030754,7]
[383691118,1757091044720,-500.0,0.00030761,7]
[383691120,1757091044730,-1300.0,0.00030775,7]
[383691122,1757091044739,-500.0,0.00030812,7]
[383691124,1757091044748,-810.0,0.00030814,7]
[383691126,1757091044758,-150.0,0.00030821,120]
[383691128,1757091044769,-13683.098985,0.00030822,3]
[383691130,1757091044778,-322.6107,0.00030832,2]
[383691132,1757091044787,-151.84668801,0.00030832,2]
[383691134,1757091044797,-670.58624095,0.00030832,2]
[383691136,1757091044807,-160.0,0.00030832,2]
[383691138,1757091044816,-500.0,0.00030832,2]
[383691140,1757091044825,-500.0,0.00030832,2]
[383691142,1757091044834,-500.0,0.00030832,2]
[383691144,1757091044844,-500.0,0.00030832,2]
[383691146,1757091044854,-500.0,0.00030832,2]
[383691148,1757091044863,-500.0,0.00030832,2]
[383691150,1757091044874,-500.0,0.00030832,2]
[383691152,1757091044883,-500.0,0.00030832,2]
[383691154,1757091044892,-500.0,0.00030832,2]
[383691156,1757091044902,-500.0,0.00030832,2]
[383691158,1757091044911,-500.0,0.00030832,2]
[383691160,1757091044920,-502.30718101,0.00030832,2]
[383691162,1757091044930,-151.0,0.00030832,2]
[383691164,1757091044941,-500.0,0.00030832,2]
[383691166,1757091044950,-257.91778498,0.00030832,2]
[383691168,1757091044959,-151.0,0.00030832,2]
[383691170,1757091044969,-500.0,0.00030832,2]
[383691172,1757091044979,-151.0,0.00030832,2]
[383691174,1757091044988,-500.0,0.00030832,2]
[383691176,1757091044997,-151.0,0.00030832,2]
[383691178,1757091045007,-500.0,0.00030832,2]
[383691180,1757091045016,-151.0,0.00030832,2]
[383691182,1757091045026,-500.0,0.00030832,2]
[383691184,1757091045035,-152.13653375,0.00030832,2]
[383691186,1757091045045,-151.0,0.00030832,2]
[383691188,1757091045055,-500.0,0.00030832,2]
[383691190,1757091045064,-151.0,0.00030832,2]
[383691192,1757091045073,-500.0,0.00030832,2]
[383691194,1757091045082,-500.0,0.00030832,2]
[383691196,1757091045092,-500.0,0.00030832,2]
[383691198,1757091045101,-151.0,0.00030832,2]
[383691200,1757091045111,-500.0,0.00030832,2]
[383691202,1757091045120,-151.0,0.00030832,2]
[383691204,1757091045130,-500.0,0.00030832,2]
[383691206,1757091045139,-500.0,0.00030832,2]
[383691208,1757091045149,-151.0,0.00030832,2]
[383691210,1757091045159,-500.0,0.00030832,2]
[383691212,1757091045168,-151.0,0.00030832,2]
[383691214,1757091045178,-500.0,0.00030832,2]
[383691216,1757091045187,-151.0,0.00030832,2]
[383691218,1757091045196,-500.0,0.00030832,2]
[383691220,1757091045205,-270.40067162,0.00030832,2]
[383691222,1757091045214,-500.0,0.00030832,2]
[383691224,1757091045223,-500.0,0.00030832,2]
[383691226,1757091045232,-500.0,0.00030832,2]
[383691229,1757091045244,-500.0,0.00030832,2]
[383691230,1757091045253,-500.0,0.00030832,2]
[383691232,1757091045263,-500.0,0.00030832,2]
[383691234,1757091045273,-151.0,0.00030832,2]
[383691236,1757091045282,-3524.37644484,0.00030832,2]
[383691238,1757091045292,-194.72792766,0.00030832,2]
[383691241,1757091045302,-250.0,0.00030832,2]
[383691243,1757091045315,-250.0,0.00030832,2]
[383691245,1757091045324,-250.0,0.00030832,2]
[383691247,1757091045334,-250.0,0.00030832,2]
[383691249,1757091045345,-250.0,0.00030832,2]
[383691251,1757091045354,-250.0,0.00030832,2]
[383691253,1757091045364,-250.0,0.00030832,2]
[383691255,1757091045373,-250.0,0.00030832,2]
[383691257,1757091045383,-250.0,0.00030832,2]
[383691259,1757091045392,-250.0,0.00030832,2]
[383691261,1757091045402,-250.0,0.00030832,2]
[383691263,1757091045412,-250.0,0.00030832,2]
[383691265,1757091045421,-250.0,0.00030832,2]
[383691267,1757091045430,-573.69819831,0.00030843,7]
[383691269,1757091045440,-1300.0,0.00030872,7]
[383691271,1757091045449,-1244.093,0.00030879,27]
[383691273,1757091045459,-1100.0,0.00030924,7]
[383691275,1757091045468,-500.0,0.00030957,7]
[383691277,1757091045478,-150.0,0.00030958,120]
[383691279,1757091045487,-312.21193696,0.00030958,7]
[383691281,1757091045497,-1200.0,0.0003097,7]
[383691283,1757091045506,-1300.0,0.00030981,7]
[383691285,1757091045516,-13683.098985,0.0003099,3]
[383691287,1757091045526,-334.08003019,0.00031,5]
[383691289,1757091045535,-1000.0,0.00031,2]
[383691291,1757091045544,-500.0,0.00031003,7]
[383691293,1757091045555,-600.0,0.00031011,7]
[383691295,1757091045564,-500.0,0.00031019,7]
[383691297,1757091045573,-152.66251733,0.00031025,7]
[383691299,1757091045583,-1200.0,0.00031039,7]
[383691301,1757091045595,-1300.0,0.00031057,7]
[383691303,1757091045606,-159.59,0.00031061,30]
[383691305,1757091045615,-1348.54442893,0.00031076,15]
[383691307,1757091045624,-211.53156,0.0003108,2]
[383691309,1757091045633,-1300.0,0.00031087,7]
[383691311,1757091045642,-150.0,0.00031095,120]
[383691313,1757091045651,-500.0,0.00031105,7]
[383691315,1757091045660,-9958.70573529,0.00031108,3]
[383691317,1757091045670,-1700.0,0.00031109,7]
[383691320,1757091045679,-1300.0,0.00031111,7]
[383691322,1757091045688,-500.0,0.00031116,7]
[383691324,1757091045698,-1300.0,0.00031118,7]
[383691326,1757091045707,-1100.0,0.00031182,7]
[383691328,1757091045717,-1200.0,0.00031196,7]
[383691330,1757091045726,-4984.95649705,0.00031218,2]
[383691333,1757091045735,-500.0,0.00031221,7]
[383691336,1757091045745,-150.0,0.00031232,120]
[383691338,1757091045754,-1200.0,0.00031242,7]
[383691340,1757091045763,-500.0,0.00031243,7]
[383691342,1757091045773,-166.5953983,0.00031249,7]
[383691344,1757091045782,-500.7,0.00031256,7]
[383691346,1757091045792,-500.0,0.00031257,7]
[383691348,1757091045802,-9958.70573529,0.00031297,3]
[383691350,1757091045811,-1700.0,0.00031304,7]
[383691352,1757091045820,-13683.098985,0.00031307,3]
[383691354,1757091045830,-1300.0,0.00031317,7]
[383691356,1757091045842,-500.0,0.0003134,7]
[383691358,1757091045852,-1300.0,0.00031356,7]
[383691360,1757091045861,-150.0,0.00031369,120]
[383691362,1757091045870,-1300.0,0.00031387,7]
[383691364,1757091045880,-9958.70573529,0.0003139,3]
[383691366,1757091045889,-8408.31440304,0.000314,30]
[383691368,1757091045899,-2002.0,0.00031401,2]
[383691370,1757091045909,-13683.098985,0.0003142,3]
[383691372,1757091045919,-8241.99844651,0.0003142,3]
[383691440,1757091451754,351.37301667,0.00030137,120]
[383691471,1757091518774,157.45,0.00013699,2]
[383691484,1757091578847,500.0,0.0003013,120]
[383691515,1757091637004,500.0,0.00030136,120]
[383691516,1757091643203,500.0,0.00030136,120]
[383691555,1757091648716,500.0,0.00030136,120]
[383691576,1757091661047,400.0,0.00030136,120]
[383691589,1757091685320,500.0,0.00030136,120]
[383691601,1757091745817,152.69,0.00014578,2]
[383691602,1757091745993,152.69,0.00018222,2]
[383691611,1757091853638,368.0,0.00018267,2]
[383691656,1757092232166,-152.69,0.00021867,2]
[383691657,1757092232176,-500.0,0.000219,2]
[383691658,1757092232185,-250.0,0.00022433,2]
[383691659,1757092232194,-151.0,0.00023,7]
[383691660,1757092232204,-250.0,0.00024053,2]
[383691661,1757092232214,-268.85223,0.00024657,2]
[383691662,1757092232224,-268.85223,0.00024657,2]
[383691663,1757092232233,-268.85223,0.00024657,2]
[383691664,1757092232243,-160.168276,0.00024657,2]
[383691665,1757092232253,-268.85223,0.0002483,2]
[383691666,1757092232262,-268.85223,0.00024888,2]
[383691667,1757092232271,-268.85223,0.00024897,2]
[383691668,1757092232281,-1033.88406246,0.000249,2]
[383691669,1757092232290,-268.85223,0.00024931,2]
[383691670,1757092232299,-268.85223,0.00024931,2]
[383691671,1757092232309,-268.85223,0.00025104,2]
[383691672,1757092232319,-268.85223,0.00025205,2]
[383691673,1757092232328,-268.85223,0.00025378,2]
[383691674,1757092232338,-160.168276,0.00025378,2]
[383691675,1757092232347,-268.85223,0.00025479,2]
[383691676,1757092232357,-152.69,0.00025511,2]
[383691677,1757092232367,-268.85223,0.00025652,2]
[383691678,1757092232375,-150.0,0.000257,2]
[383691679,1757092232383,-268.85223,0.00025926,2]
[383691680,1757092232392,-1033.88406217,0.00025929,4]
[383691681,1757092232401,-500.0,0.00026192,2]
[383691682,1757092232409,-268.85223,0.000262,2]
[383691683,1757092232419,-268.85223,0.00026474,2]
[383691684,1757092232427,-268.85223,0.00026748,2]
[383691685,1757092232437,-1033.88406217,0.00026959,6]
[383691686,1757092232446,-268.85223,0.00027022,2]
[383691687,1757092232455,-516.0,0.00027137,2]
[383691688,1757092232464,-268.85223,0.00027296,2]
[383691689,1757092232474,-297.62,0.000273,7]
[383691690,1757092232483,-157.45,0.00027397,2]
[383691691,1757092232493,-160.168276,0.0002757,2]
[383691692,1757092232503,-268.85223,0.0002757,2]
[383691693,1757092232512,-388.61,0.00027595,30]
[383691694,1757092232523,-268.85223,0.00027844,2]
[383691695,1757092232534,-1033.88406217,0.00027988,8]
[383691697,1757092232544,-268.85223,0.00028118,2]
[383691698,1757092232554,-1852.42,0.00028206,2]
[383691700,1757092232564,-268.85223,0.00028392,2]
[383691702,1757092232574,-300.0,0.00028599,2]
[383691704,1757092232584,-3171.73633728,0.000286,2]
[383691706,1757092232594,-156.08587707,0.000286,2]
[383691707,1757092232603,-268.85223,0.00028666,2]
[383691708,1757092232613,-13677.43077811,0.0002868,2]
[383691712,1757092232657,-1282.65375268,0.0002868,2]
[383691718,1757092232702,-1090.230939,0.0002868,2]
[383691720,1757092232714,-1083.37453021,0.0002868,2]
[383691722,1757092232723,-200.0,0.00028683,2]
[383691724,1757092232733,-600.0,0.00028683,2]
[383691726,1757092232745,-200.0,0.00028683,2]
[383691728,1757092232755,-153.04681062,0.00028683,2]
[383691730,1757092232765,-151.0,0.00028683,2]
[383691732,1757092232774,-155.34859151,0.00028683,2]
[383691734,1757092232784,-200.0,0.00028683,2]
[383691736,1757092232793,-533.84346736,0.00028683,2]
[383691738,1757092232803,-500.0,0.00028683,2]
[383691740,1757092232812,-500.0,0.00028683,2]
[383691742,1757092232821,-500.0,0.00028683,2]
[383691744,1757092232830,-500.0,0.00028683,2]
[383691746,1757092232840,-500.0,0.00028683,2]
[383691748,1757092232850,-500.0,0.00028683,2]
[383691750,1757092232859,-151.0,0.00028683,2]
[383691752,1757092232869,-500.0,0.00028683,2]
[383691753,1757092232879,-151.0,0.00028683,2]
[383691754,1757092232888,-500.0,0.00028683,2]
[383691755,1757092232898,-151.0,0.00028683,2]
[383691756,1757092232908,-500.0,0.00028683,2]
[383691757,1757092232917,-151.0,0.00028683,2]
[383691758,1757092232927,-151.0,0.00028683,2]
[383691759,1757092232937,-151.0,0.00028683,2]
[383691760,1757092232946,-151.0,0.00028683,2]
[383691761,1757092232956,-151.0,0.00028683,2]
[383691762,1757092232966,-151.0,0.00028683,2]
[383691763,1757092232975,-151.0,0.00028683,2]
[383691764,1757092232984,-151.0,0.00028683,2]
[383691765,1757092232994,-151.0,0.00028683,2]
[383691766,1757092233004,-151.0,0.00028683,2]
[383691767,1757092233013,-305.37801507,0.00028698,2]
[383691768,1757092233023,-34668.1073,0.000287,2]
[383691769,1757092233032,-23135.18120945,0.000287,2]
[383691770,1757092233057,-20267.79319443,0.000287,2]
[383691771,1757092233069,-1798.44089611,0.000287,2]
[383691772,1757092233089,-592.36206145,0.000287,2]
[383692050,1757092240394,-213.76461055,0.00028205,2]
[383692052,1757092240404,-148.18447691,0.000287,2]
[383692056,1757092240415,-2148.6,0.000287,2]
[383692489,1757092244226,-699.5899999,0.000287,2]
[383692491,1757092244238,-424.49932413,0.000287,2]
[383692493,1757092244251,-779.36679134,0.000287,2]
[383692497,1757092244280,-11441.7108991,0.000287,2]
[383692499,1757092244291,-759.15556711,0.000287,2]
[383692691,1757092246224,-12993.7461163,0.000287,2]
[383692693,1757092246236,-4504.31318212,0.000287,2]
[383692698,1757092246278,-4000.24343439,0.000287,2]
[383692705,1757092246334,-610.00064622,0.000287,2]
[383692712,1757092246388,-8962.40003298,0.000287,2]
[383692739,1757092246654,-3851.29454463,0.000287,2]
[383694031,1757092480724,157.5,0.00013699,2]
[383694038,1757092758240,159.33,0.0001452,2]
[383694039,1757092758496,159.33,0.0001815,2]
[383694040,1757092768336,-152.0,0.00018737,2]
[383694041,1757092770547,-184.07786516,0.00018737,2]
[383694042,1757092773170,-25.92213484,0.00018737,2]
[383694044,1757092897613,-173.27720931,0.00018737,3]
[383694045,1757092900925,-10.80079069,0.00018737,3]
[383694047,1757092937543,500.0,0.00030136,120]
[383694049,1757093018976,-539.07348161,0.00018737,3]
[383694050,1757093023776,-227.15337064,0.00018737,3]
[383694051,1757093026641,-233.77314775,0.00018737,3]
[383694053,1757093111452,1749.38223619,0.000154,2]
[383694054,1757093118366,467.19,0.00027066,120]
[383694055,1757093126623,5000.0,0.000175,2]
[383694067,1757093318231,-171.80693099,0.00019178,2]
[383694109,1757093319895,-194.78974671,0.00019178,2]
[383694113,1757093321467,-133.4033223,0.00019178,2]
[383694137,1757093408953,157.85,0.00013699,2]
[383694142,1757093432324,-166.94,0.00019799,2]
[383694143,1757093432334,-1200.0,0.00019899,2]
[383694144,1757093432344,-4144.06,0.000199,2]
[383694145,1757093432355,-969.19187044,0.000199,2]
[383694146,1757093432379,-1016.74999994,0.000199,2]
[383694147,1757093432391,-2413.85999989,0.000199,2]
[383694148,1757093432434,-504.25599212,0.000199,2]
[383694149,1757093432445,-300.0,0.00019972,2]
[383694150,1757093432455,-500.0,0.00019973,2]
[383694151,1757093432465,-500.0,0.00019973,2]
[383694152,1757093432475,-500.0,0.00019973,2]
[383694153,1757093432485,-171.68,0.0001999,2]
[383694154,1757093432493,-171.68,0.0001999,2]
[383694155,1757093432502,-171.68,0.0001999,2]
[383694156,1757093432510,-171.68,0.0001999,2]
[383694157,1757093432519,-171.68,0.0001999,2]
[383694158,1757093432527,-392.95031853,0.00019999,2]
[383694159,1757093432548,-457.04968147,0.00019999,2]
[383694160,1757093432557,-205.54185517,0.00019999,2]
[383694161,1757093432566,-2264.87150694,0.0002,2]
[383694162,1757093432578,-489.52653273,0.0002,2]
[383694163,1757093432589,-897.63679926,0.0002,2]
[383694164,1757093432601,-888.49548043,0.0002,2]
[383694165,1757093432610,-8458.77341138,0.0002,2]
[383694166,1757093432661,-2835.5829819,0.0002,2]
[383694167,1757093432686,-1377.81570734,0.0002,2]
[383694168,1757093432698,-1882.49638822,0.0002,2]
[383694184,1757093438774,-92538.77006312,0.0002,2]
[383694186,1757093438783,-399997.49820533,0.0002,2]
[383694188,1757093438793,-3846.97237958,0.00020174,2]
[383694190,1757093438803,-500.0,0.00020274,2]
[383694192,1757093438812,-1000.0,0.00020521,2]
[383694194,1757093438822,-406.69819404,0.00020521,2]
[383694196,1757093438831,-20000.0,0.00021,2]
[383694198,1757093438840,-1000.0,0.00021068,2]
[383694200,1757093438849,-500.0,0.0002137,2]
[383694202,1757093438859,-1680.0,0.00021774,2]
[383694204,1757093438869,-208.73415069,0.0002178,2]
[383694206,1757093438878,-159.33,0.0002178,2]
[383694208,1757093438887,-250.0,0.0002178,2]
[383694210,1757093438896,-3846.97237957,0.00021909,2]
[383694212,1757093438906,-151.0,0.00022325,2]
[383694214,1757093438915,-500.0,0.00022466,2]
[383694216,1757093438925,-500.0,0.00023562,2]
[383694218,1757093438935,-3846.97237957,0.00023644,2]
[383694220,1757093438945,-5000.0,0.00024,5]
[383694222,1757093438955,-500.0,0.00024566,2]
[383694223,1757093438965,-706.97661581,0.00024658,2]
[383694226,1757093438976,-69607.110603,0.000248,2]
[383694227,1757093438986,-2677.31161,0.000248,7]
[383694230,1757093438996,-151.0,0.000248,7]
[383694232,1757093439005,-151.0,0.000248,7]